fUST/lending_fUST_20240424
["ID","MTS","AMOUNT","RATE_DAILY","PERIOD"]
[323318024,1713888128999,180.0,0.00021,14]
[323318037,1713888330145,-459.70738052,0.00014691,2]
[323318038,1713888330165,-154.81422293,0.00014691,2]
[323318039,1713888330185,-448.56571186,0.00014692,2]
[323318040,1713888330205,-1090.52068603,0.00014693,2]
[323318041,1713888330224,-162.02240911,0.00014695,2]
[323318042,1713888330244,-143.49358955,0.00014699,2]
[323318044,1713888429105,-154.81422293,0.00014541,2]
[323318045,1713888429128,-157.76351589,0.00014542,2]
[323318046,1713888429151,-1090.52068603,0.00014542,2]
[323318047,1713888429173,-157.76351589,0.00014543,2]
[323318048,1713888429197,-154.81422293,0.00014689,2]
[323318049,1713888429218,-300.0,0.00014698,2]
[323318050,1713888429239,-18.52881956,0.00014699,2]
[323318051,1713888429260,-280.57604079,0.00014699,2]
[323318052,1713888429281,-386.01178664,0.00014699,2]
[323318053,1713888429423,-692.70825887,0.00014699,2]
[323318054,1713888429446,-16090.47686539,0.00014699,2]
[323318055,1713888429468,-300.0,0.00014728,2]
[323318056,1713888429489,-459.70738052,0.00015049,2]
[323318057,1713888429511,-212.53195849,0.00015049,2]
[323318058,1713888429535,-12427.77706522,0.0001505,2]
[323318060,1713888551145,-300.0,0.00014598,2]
[323318061,1713888551176,-292.0,0.00014598,2]
[323318062,1713888551202,-18781.99535655,0.00014599,2]
[323318063,1713888551232,-15029.53981042,0.00014699,2]
[323318064,1713888551269,-692.47153713,0.00014699,2]
[323318065,1713888551296,-235.89670241,0.00014699,2]
[323318066,1713888551325,-507.65449026,0.00014899,2]
[323318067,1713888551353,-270.3466684,0.00014951,2]
[323318068,1713888551381,-637.8190702,0.00015049,2]
[323318069,1713888551410,-200.81552333,0.00015049,2]
[323318070,1713888551439,-154.86061926,0.00015049,2]
[323318071,1713888551468,-157.38966881,0.00015049,2]
[323318072,1713888551492,-10833.63718422,0.0001505,2]
[323318073,1713888554338,-8957.16208356,0.0001505,2]
[323318074,1713888554362,-385.87436612,0.0001505,2]
[323318075,1713888554387,-221.86358459,0.0001505,2]
[323318076,1713888554412,-24900.0,0.00015051,2]
[323318077,1713888554437,-959.51717929,0.00015893,2]
[323318078,1713888554462,-420.0,0.00016058,2]
[323318079,1713888554486,-238.34833759,0.00016201,2]
[323318080,1713888554513,-272.57129579,0.000165,2]
[323318081,1713888554537,-154.84515485,0.00016729,2]
[323318082,1713888554561,-356.40304323,0.00016729,2]
[323318083,1713888554584,-3043.4265863,0.00016729,2]
[323318084,1713888554605,-1675.82446385,0.00016729,2]
[323318085,1713888554781,-2099.47208497,0.00016729,2]
[323318086,1713888554801,-172.3190033,0.00016729,2]
[323318087,1713888554825,-312.03119251,0.00016729,2]
[323318088,1713888554846,-156.3171088,0.00016729,2]
[323318089,1713888554864,-199.80945329,0.00016729,2]
[323318090,1713888554884,-154.84515175,0.00016729,2]
[323318091,1713888554903,-155.72854149,0.00016729,2]
[323318092,1713888554921,-155.02148443,0.00016729,2]
[323318093,1713888554940,-200.0,0.00016729,2]
[323318094,1713888554960,-158.98533641,0.00016729,2]
[323318095,1713888554979,-439.24201302,0.0001673,2]
[323318096,1713888554998,-7616.20738606,0.0001673,2]
[323318097,1713888555020,-587.0,0.00017663,2]
[323318098,1713888555039,-3332.07021851,0.00018,2]
[323318099,1713888563088,-52.59435208,0.00018,2]
[323318100,1713888568102,163.46107966,0.0001505,2]
[323318107,1713888595716,365.24320281,0.0001505,2]
[323318233,1713888638622,-687.9459505,0.000189,2]
[323318234,1713888638633,-189.19295912,0.0001897,2]
[323318235,1713888638642,-177.40806102,0.00019078,2]
[323318236,1713888638652,-153.0,0.00019078,2]
[323318237,1713888638662,-155.2596708,0.00019078,2]
[323318238,1713888638671,-628.221272,0.00019157,2]
[323318239,1713888638681,-300.0,0.00019175,2]
[323318240,1713888638690,-308.49906714,0.00019176,2]
[323318241,1713888638700,-1311.74164115,0.00019176,2]
[323318242,1713888638709,-408.87824963,0.00019176,2]
[323318243,1713888638719,-2623.97456043,0.00019176,2]
[323318244,1713888638730,-2587.76784421,0.00019176,2]
[323318245,1713888638742,-5801.77357762,0.00019176,2]
[323318246,1713888638752,-154.82968734,0.00019176,2]
[323318247,1713888638761,-468.44380318,0.00019176,2]
[323318248,1713888638772,-17581.56346869,0.00019176,2]
[323318249,1713888638782,-207.89139513,0.00019177,2]
[323318250,1713888638791,-2775.48792824,0.00019177,2]
[323318251,1713888638801,-500.0,0.00019178,2]
[323318252,1713888638810,-853.98,0.00019178,2]
[323318253,1713888638821,-500.0,0.00019178,2]
[323318254,1713888638833,-396.95520924,0.00019178,2]
[323318255,1713888638877,-265.84844893,0.00019178,2]
[323318256,1713888638887,-500.0,0.00019178,2]
[323318257,1713888638896,-500.0,0.00019178,2]
[323318258,1713888638907,-500.0,0.00019178,2]
[323318260,1713888638919,-500.0,0.00019178,2]
[323318261,1713888638927,-652.5,0.00019178,2]
[323318262,1713888638937,-500.0,0.00019178,2]
[323318264,1713888638948,-500.0,0.00019178,2]
[323318266,1713888638958,-500.0,0.00019178,2]
[323318268,1713888638969,-500.0,0.00019178,2]
[323318270,1713888638979,-500.0,0.00019178,2]
[323318272,1713888638989,-500.0,0.00019178,2]
[323318274,1713888638999,-500.0,0.00019178,2]
[323318276,1713888639010,-500.0,0.00019178,2]
[323318278,1713888639019,-500.0,0.00019178,2]
[323318280,1713888639030,-500.0,0.00019178,2]
[323318282,1713888639040,-550.03879321,0.00019178,2]
[323318284,1713888639049,-500.0,0.00019178,2]
[323318286,1713888639058,-500.0,0.00019178,2]
[323318288,1713888639068,-500.0,0.00019178,2]
[323318290,1713888639077,-500.0,0.00019178,2]
[323318292,1713888639090,-500.0,0.00019178,2]
[323318294,1713888639098,-519.01241759,0.00019178,2]
[323318296,1713888639108,-500.0,0.00019178,2]
[323318298,1713888639117,-500.0,0.00019178,2]
[323318300,1713888639126,-500.0,0.00019178,2]
[323318302,1713888639135,-500.0,0.00019178,2]
[323318304,1713888639144,-1196.09,0.00019178,2]
[323318306,1713888639153,-718.7,0.00019178,2]
[323318308,1713888639162,-500.0,0.00019178,2]
[323318309,1713888639171,-500.0,0.00019178,2]
[323318310,1713888639180,-500.0,0.00019178,2]
[323318311,1713888639189,-500.0,0.00019178,2]
[323318313,1713888639198,-500.0,0.00019178,2]
[323318326,1713888639316,-500.0,0.00019178,2]
[323318328,1713888639326,-500.0,0.00019178,2]
[323318330,1713888639340,-572.62,0.00019178,2]
[323318333,1713888639350,-662.48,0.00019178,2]
[323318334,1713888639359,-500.0,0.00019178,2]
[323318336,1713888639368,-500.0,0.00019178,2]
[323318338,1713888639378,-500.0,0.00019178,2]
[323318340,1713888639388,-500.0,0.00019178,2]
[323318342,1713888639398,-682.8,0.00019178,2]
[323318345,1713888639408,-500.0,0.00019178,2]
[323318346,1713888639417,-500.0,0.00019178,2]
[323318349,1713888639429,-500.0,0.00019178,2]
[323318351,1713888639438,-592.32,0.00019178,2]
[323318353,1713888639449,-500.0,0.00019178,2]
[323318355,1713888639459,-500.0,0.00019178,2]
[323318357,1713888639468,-500.0,0.00019178,2]
[323318359,1713888639479,-500.0,0.00019178,2]
[323318361,1713888639489,-500.0,0.00019178,2]
[323318362,1713888639499,-500.0,0.00019178,2]
[323318363,1713888639508,-1751.38,0.00019178,2]
[323318364,1713888639518,-920.25,0.00019178,2]
[323318365,1713888639527,-500.0,0.00019178,2]
[323318366,1713888639537,-500.0,0.00019178,2]
[323318367,1713888639547,-606.13,0.00019178,2]
[323318368,1713888639556,-500.0,0.00019178,2]
[323318369,1713888639566,-500.0,0.00019178,2]
[323318370,1713888639575,-500.0,0.00019178,2]
[323318371,1713888639585,-500.0,0.00019178,2]
[323318372,1713888639594,-589.88,0.00019178,2]
[323318373,1713888639604,-536.76,0.00019178,2]
[323318374,1713888639614,-669.87,0.00019178,2]
[323318375,1713888639624,-532.12,0.00019178,2]
[323318376,1713888639634,-500.0,0.00019178,2]
[323318377,1713888639644,-500.0,0.00019178,2]
[323318378,1713888639654,-284.5702624,0.00019178,2]
[323318379,1713888639665,-1271.17,0.00019178,2]
[323318380,1713888639676,-500.0,0.00019178,2]
[323318381,1713888639686,-500.0,0.00019178,2]
[323318382,1713888639696,-500.0,0.00019178,2]
[323318383,1713888639706,-581.8,0.00019178,2]
[323318384,1713888639716,-939.13,0.00019178,2]
[323318385,1713888639725,-1212.24,0.00019178,2]
[323318386,1713888639738,-500.0,0.00019178,2]
[323318387,1713888639752,-500.0,0.00019178,2]
[323318388,1713888639762,-500.0,0.00019178,2]
[323318389,1713888639773,-921.08,0.00019178,2]
[323318390,1713888639787,-1061.75,0.00019178,2]
[323318391,1713888639797,-500.0,0.00019178,2]
[323318392,1713888639806,-1028.83,0.00019178,2]
[323318393,1713888639816,-500.0,0.00019178,2]
[323318394,1713888639827,-658.48,0.00019178,2]
[323318395,1713888639839,-1324.11,0.00019178,2]
[323318396,1713888639849,-244.29403611,0.00019178,2]
[323318397,1713888639860,-500.0,0.00019178,2]
[323318398,1713888639870,-500.0,0.00019178,2]
[323318399,1713888639880,-500.0,0.00019178,2]
[323318400,1713888639889,-500.0,0.00019178,2]
[323318401,1713888639898,-500.0,0.00019178,2]
[323318402,1713888639909,-1098.57,0.00019178,2]
[323318403,1713888639918,-708.27,0.00019178,2]
[323318404,1713888639930,-500.0,0.00019178,2]
[323318405,1713888639939,-500.0,0.00019178,2]
[323318406,1713888639950,-1083.14,0.00019178,2]
[323318407,1713888639960,-1738.99,0.00019178,2]
[323318408,1713888639969,-579.58264124,0.00019178,2]
[323318409,1713888639979,-500.0,0.00019178,2]
[323318410,1713888639989,-500.0,0.00019178,2]
[323318411,1713888639998,-850.85,0.00019178,2]
[323318412,1713888640008,-500.0,0.00019178,2]
[323318413,1713888640018,-500.0,0.00019178,2]
[323318414,1713888640028,-596.29,0.00019178,2]
[323318415,1713888640037,-500.0,0.00019178,2]
[323318416,1713888640047,-9046.62,0.00019178,2]
[323318417,1713888640058,-558.64,0.00019178,2]
[323318418,1713888640068,-500.0,0.00019178,2]
[323318419,1713888640077,-500.0,0.00019178,2]
[323318420,1713888640090,-500.0,0.00019178,2]
[323318421,1713888640099,-827.72,0.00019178,2]
[323318422,1713888640110,-500.0,0.00019178,2]
[323318423,1713888640120,-500.0,0.00019178,2]
[323318424,1713888640130,-500.0,0.00019178,2]
[323318425,1713888640140,-500.0,0.00019178,2]
[323318426,1713888640150,-500.0,0.00019178,2]
[323318427,1713888640161,-495.20162556,0.00019178,2]
[323318428,1713888640170,-500.0,0.00019178,2]
[323318430,1713888640180,-547.96,0.00019178,2]
[323318432,1713888640191,-7470.75,0.00019178,2]
[323318433,1713888640200,-500.0,0.00019178,2]
[323318434,1713888640210,-500.0,0.00019178,2]
[323318435,1713888640221,-500.0,0.00019178,2]
[323318436,1713888640232,-500.0,0.00019178,2]
[323318437,1713888640241,-500.0,0.00019178,2]
[323318438,1713888640251,-500.0,0.00019178,2]
[323318439,1713888640261,-500.0,0.00019178,2]
[323318440,1713888640271,-500.0,0.00019178,2]
[323318441,1713888640282,-500.0,0.00019178,2]
[323318442,1713888640291,-500.0,0.00019178,2]
[323318443,1713888640301,-1297.2,0.00019178,2]
[323318445,1713888640313,-500.0,0.00019178,2]
[323318446,1713888640323,-18924.02,0.00019178,2]
[323318447,1713888640332,-635.37,0.00019178,2]
[323318449,1713888640348,-500.0,0.00019178,2]
[323318451,1713888640359,-500.0,0.00019178,2]
[323318453,1713888640367,-500.0,0.00019178,2]
[323318454,1713888640378,-3819.88,0.00019178,2]
[323318455,1713888640388,-500.0,0.00019178,2]
[323318456,1713888640398,-1111.37,0.00019178,2]
[323318457,1713888640408,-500.0,0.00019178,2]
[323318458,1713888640418,-500.0,0.00019178,2]
[323318459,1713888640428,-500.0,0.00019178,2]
[323318461,1713888640437,-500.0,0.00019178,2]
[323318463,1713888640448,-500.0,0.00019178,2]
[323318464,1713888640457,-985.23,0.00019178,2]
[323318467,1713888640468,-500.0,0.00019178,2]
[323318469,1713888640477,-3379.88,0.00019178,2]
[323318470,1713888640487,-613.54,0.00019178,2]
[323318472,1713888640498,-500.0,0.00019178,2]
[323318474,1713888640509,-500.0,0.00019178,2]
[323318476,1713888640519,-500.0,0.00019178,2]
[323318478,1713888640529,-500.0,0.00019178,2]
[323318480,1713888640538,-500.0,0.00019178,2]
[323318482,1713888640548,-361.08025354,0.00019178,2]
[323318484,1713888640558,-500.0,0.00019178,2]
[323318486,1713888640568,-328.24798801,0.00019178,2]
[323318488,1713888640577,-1741.22,0.00019178,2]
[323318490,1713888640592,-500.0,0.00019178,2]
[323318492,1713888640602,-500.0,0.00019178,2]
[323318494,1713888640612,-500.0,0.00019178,2]
[323318496,1713888640622,-4220.32,0.00019178,2]
[323318498,1713888640632,-500.0,0.00019178,2]
[323318500,1713888640643,-500.0,0.00019178,2]
[323318502,1713888640652,-500.0,0.00019178,2]
[323318504,1713888640662,-500.0,0.00019178,2]
[323318506,1713888640672,-6790.68,0.00019178,2]
[323318508,1713888640682,-500.0,0.00019178,2]
[323318510,1713888640692,-500.0,0.00019178,2]
[323318512,1713888640701,-798.49,0.00019178,2]
[323318514,1713888640711,-500.0,0.00019178,2]
[323318516,1713888640721,-500.0,0.00019178,2]
[323318518,1713888640732,-5421.87,0.00019178,2]
[323318520,1713888640744,-500.0,0.00019178,2]
[323318522,1713888640753,-500.0,0.00019178,2]
[323318524,1713888640764,-500.0,0.00019178,2]
[323318526,1713888640775,-500.0,0.00019178,2]
[323318528,1713888640783,-500.0,0.00019178,2]
[323318530,1713888640793,-500.0,0.00019178,2]
[323318532,1713888640802,-500.0,0.00019178,2]
[323318534,1713888640813,-500.0,0.00019178,2]
[323318536,1713888640824,-500.0,0.00019178,2]
[323318538,1713888640833,-500.0,0.00019178,2]
[323318540,1713888640845,-500.0,0.00019178,2]
[323318542,1713888640855,-3590.54,0.00019178,2]
[323318544,1713888640866,-1012.72,0.00019178,2]
[323318545,1713888640876,-500.0,0.00019178,2]
[323318547,1713888640887,-579.64,0.00019178,2]
[323318548,1713888640897,-500.0,0.00019178,2]
[323318549,1713888640908,-500.0,0.00019178,2]
[323318551,1713888640917,-500.0,0.00019178,2]
[323318553,1713888640926,-2878.79,0.00019178,2]
[323318555,1713888640935,-500.0,0.00019178,2]
[323318557,1713888640943,-500.0,0.00019178,2]
[323318559,1713888640953,-1146.87,0.00019178,2]
[323318561,1713888640964,-500.0,0.00019178,2]
[323318563,1713888640974,-500.0,0.00019178,2]
[323318564,1713888640984,-159.529201,0.00019178,2]
[323318565,1713888640994,-165.939959,0.00019178,2]
[323318566,1713888641004,-153.0,0.00019221,2]
[323318567,1713888641016,-203.583665,0.00019221,2]
[323318568,1713888641026,-203.583665,0.00019221,2]
[323318569,1713888641036,-153.0,0.00019221,2]
[323318570,1713888641045,-407.16733,0.00019221,2]
[323318571,1713888641057,-153.0,0.00019221,2]
[323318572,1713888641067,-153.0,0.00019221,2]
[323318573,1713888641077,-153.0,0.00019221,2]
[323318574,1713888641089,-153.0,0.00019221,2]
[323318575,1713888641099,-203.583665,0.00019221,2]
[323318576,1713888641108,-153.0,0.00019221,2]
[323318577,1713888641119,-153.0,0.00019221,2]
[323318578,1713888641129,-153.0,0.00019221,2]
[323318579,1713888641138,-153.0,0.00019221,2]
[323318580,1713888641148,-203.583665,0.00019221,2]
[323318582,1713888641158,-153.0,0.00019221,2]
[323318583,1713888641169,-410.0760066,0.00019221,2]
[323318584,1713888641179,-203.583665,0.00019221,2]
[323318585,1713888641190,-153.0,0.000193,2]
[323318586,1713888641200,-307.690723,0.000193,2]
[323318587,1713888641210,-203.583665,0.000193,2]
[323318588,1713888641221,-306.0,0.000193,2]
[323318589,1713888641231,-177.408061,0.00019352,2]
[323318590,1713888641242,-270.34666838,0.00019372,2]
[323318591,1713888641252,-1200.17,0.00019451,2]
[323318592,1713888641262,-500.0,0.00019451,2]
[323318593,1713888641272,-612.94,0.00019451,2]
[323318594,1713888641282,-500.0,0.00019451,2]
[323318595,1713888641292,-500.0,0.00019451,2]
[323318596,1713888641303,-500.0,0.00019451,2]
[323318597,1713888641312,-500.0,0.00019451,2]
[323318598,1713888641323,-500.0,0.00019451,2]
[323318599,1713888641332,-853.98,0.00019452,2]
[323318600,1713888641345,-500.0,0.00019452,2]
[323318601,1713888641356,-500.0,0.00019452,2]
[323318602,1713888641366,-500.0,0.00019452,2]
[323318603,1713888641375,-652.5,0.00019452,2]
[323318604,1713888641385,-500.0,0.00019452,2]
[323318605,1713888641394,-236.32165326,0.00019452,2]
[323318606,1713888641403,-500.0,0.00019452,2]
[323318607,1713888641413,-500.0,0.00019452,2]
[323318608,1713888641423,-500.0,0.00019452,2]
[323318609,1713888641432,-500.0,0.00019452,2]
[323318610,1713888641441,-500.0,0.00019452,2]
[323318611,1713888641452,-500.0,0.00019452,2]
[323318612,1713888641462,-500.0,0.00019452,2]
[323318613,1713888641472,-500.0,0.00019452,2]
[323318614,1713888641482,-500.0,0.00019452,2]
[323318615,1713888641492,-558.97,0.00019452,2]
[323318616,1713888641502,-29.29833404,0.00019452,2]
[323318617,1713888641517,-470.70166596,0.00019452,2]
[323318618,1713888641526,-159.93043053,0.00019452,2]
[323318648,1713888646236,-193.24,0.00019168,3]
[323318649,1713888646246,-107.42629422,0.00019178,2]
[323318654,1713888646789,-392.57370578,0.00019178,2]
[323318655,1713888646799,-500.0,0.00019178,2]
[323318656,1713888646808,-89.1879507,0.00019178,2]
[323318666,1713888661008,300.0,0.00014728,2]
[323318667,1713888661702,420.0,0.00016201,2]
[323318668,1713888662374,587.0,0.00017821,2]
[323318678,1713888727061,2021.60648759,0.00017821,2]
[323318825,1713889559109,-308.49906714,0.00014706,2]
[323318826,1713889559131,-521.52942585,0.00014707,2]
[323318827,1713889559153,-519.95768087,0.00014707,2]
[323318828,1713889559175,-692.70825887,0.00017821,2]
[323318829,1713889559195,-195.14242935,0.00017821,2]
[323318830,1713889559215,-300.0,0.00017842,2]
[323318831,1713889559235,-202.0,0.00017842,2]
[323318832,1713889559256,-459.24092799,0.00017843,2]
[323318863,1713889746130,-692.70825887,0.00017821,2]
[323318864,1713889746151,-300.0,0.00017842,2]
[323318865,1713889746172,-24440.75907201,0.00017843,2]
[323318866,1713889746192,-446.32266912,0.000189,2]
[323318902,1713889831814,-213.33781694,0.00019078,2]
[323318903,1713889831823,-70.16136324,0.000191,2]
[323318904,1713889831835,-82.83863676,0.000191,2]
[323318905,1713889831845,-246.32459156,0.000191,2]
[323318906,1713889831873,-59.67540844,0.000191,2]
[323318908,1713889831882,-628.221272,0.00019155,2]
[323318909,1713889831891,-161.03,0.00019168,3]
[323318910,1713889831901,-483.11,0.00019168,3]
[323318911,1713889831911,-300.0,0.00019173,2]
[323318912,1713889831921,-1311.74164115,0.00019174,2]
[323318913,1713889831931,-189.19295912,0.00019174,2]
[323318914,1713889831941,-308.43832005,0.00019174,2]
[323318915,1713889831952,-352.27539728,0.00019174,2]
[323318917,1713889831962,-408.87824963,0.00019175,2]
[323318919,1713889831973,-137.79690943,0.00019176,2]
[323319515,1713889837823,-309.85641062,0.000189,2]
[323319517,1713889837834,-68.27053083,0.00019176,2]
[323319519,1713889837844,-157.03688122,0.00019176,2]
[323319521,1713889837853,-526.34381075,0.00019176,2]
[323319523,1713889837863,-305.02639978,0.00019176,2]
[323319525,1713889837872,-155.35152652,0.00019176,2]
[323319527,1713889837881,-409.78867332,0.00019176,2]
[323319529,1713889837894,-2177.97917089,0.00019176,2]
[323319531,1713889837903,-17581.56346869,0.00019176,2]
[323319533,1713889837912,-468.44380318,0.00019176,2]
[323319535,1713889837922,-5801.77357762,0.00019176,2]
[323319537,1713889837931,-154.82968734,0.00019176,2]
[323319539,1713889837940,-2623.97456043,0.00019176,2]
[323319541,1713889837949,-2775.48792824,0.00019177,2]
[323319543,1713889837959,-207.89139513,0.00019177,2]
[323319545,1713889837968,-200.0,0.00019178,2]
[323319547,1713889837977,-500.0,0.00019178,2]
[323319549,1713889837986,-572.62,0.00019178,2]
[323319551,1713889837995,-500.0,0.00019178,2]
[323319553,1713889838004,-500.0,0.00019178,2]
[323319555,1713889838013,-500.0,0.00019178,2]
[323319557,1713889838022,-500.0,0.00019178,2]
[323319559,1713889838034,-500.0,0.00019178,2]
[323319561,1713889838044,-500.0,0.00019178,2]
[323319562,1713889838053,-500.0,0.00019178,2]
[323319565,1713889838063,-500.0,0.00019178,2]
[323319567,1713889838076,-500.0,0.00019178,2]
[323319569,1713889838086,-265.84844893,0.00019178,2]
[323319571,1713889838095,-500.0,0.00019178,2]
[323319573,1713889838105,-500.0,0.00019178,2]
[323319574,1713889838115,-500.0,0.00019178,2]
[323319576,1713889838125,-500.0,0.00019178,2]
[323319578,1713889838134,-500.0,0.00019178,2]
[323319580,1713889838144,-500.0,0.00019178,2]
[323319582,1713889838154,-500.0,0.00019178,2]
[323319584,1713889838164,-500.0,0.00019178,2]
[323319586,1713889838173,-500.0,0.00019178,2]
[323319588,1713889838182,-500.0,0.00019178,2]
[323319590,1713889838191,-500.0,0.00019178,2]
[323319592,1713889838201,-500.0,0.00019178,2]
[323319594,1713889838210,-500.0,0.00019178,2]
[323319596,1713889838219,-500.0,0.00019178,2]
[323319598,1713889838228,-500.0,0.00019178,2]
[323319600,1713889838237,-500.0,0.00019178,2]
[323319602,1713889838247,-500.0,0.00019178,2]
[323319604,1713889838256,-1259.92,0.00019178,2]
[323319606,1713889838265,-974.23,0.00019178,2]
[323319609,1713889838274,-500.0,0.00019178,2]
[323319610,1713889838288,-500.0,0.00019178,2]
[323319612,1713889838298,-500.0,0.00019178,2]
[323319614,1713889838307,-500.0,0.00019178,2]
[323319616,1713889838316,-500.0,0.00019178,2]
[323319618,1713889838325,-500.0,0.00019178,2]
[323319620,1713889838334,-662.48,0.00019178,2]
[323319622,1713889838344,-500.0,0.00019178,2]
[323319624,1713889838353,-244.29403611,0.00019178,2]
[323319626,1713889838362,-896.42,0.00019178,2]
[323319628,1713889838371,-682.8,0.00019178,2]
[323319630,1713889838380,-594.33798587,0.00019178,2]
[323319631,1713889838389,-500.0,0.00019178,2]
[323319632,1713889838398,-1200.17,0.00019178,2]
[323319633,1713889838406,-579.58264124,0.00019178,2]
[323319634,1713889838415,-500.0,0.00019178,2]
[323319635,1713889838424,-500.0,0.00019178,2]
[323319636,1713889838433,-500.0,0.00019178,2]
[323319638,1713889838441,-500.0,0.00019178,2]
[323319640,1713889838451,-500.0,0.00019178,2]
[323319642,1713889838460,-500.0,0.00019178,2]
[323319645,1713889838470,-585.18,0.00019178,2]
[323319647,1713889838479,-495.20162556,0.00019178,2]
[323319648,1713889838488,-500.0,0.00019178,2]
[323319650,1713889838497,-592.32,0.00019178,2]
[323319652,1713889838506,-417.73506971,0.00019178,2]
[323319655,1713889838517,-500.0,0.00019178,2]
[323319657,1713889838529,-500.0,0.00019178,2]
[323319659,1713889838539,-500.0,0.00019178,2]
[323319660,1713889838548,-500.0,0.00019178,2]
[323319662,1713889838557,-500.0,0.00019178,2]
[323319664,1713889838566,-500.0,0.00019178,2]
[323319667,1713889838576,-500.0,0.00019178,2]
[323319669,1713889838586,-500.0,0.00019178,2]
[323319670,1713889838594,-500.0,0.00019178,2]
[323319672,1713889838603,-500.0,0.00019178,2]
[323319674,1713889838613,-1152.77,0.00019178,2]
[323319676,1713889838622,-500.0,0.00019178,2]
[323319679,1713889838631,-920.25,0.00019178,2]
[323319680,1713889838641,-500.0,0.00019178,2]
[323319683,1713889838650,-500.0,0.00019178,2]
[323319685,1713889838659,-500.0,0.00019178,2]
[323319687,1713889838669,-500.0,0.00019178,2]
[323319689,1713889838678,-612.94,0.00019178,2]
[323319690,1713889838687,-500.0,0.00019178,2]
[323319692,1713889838696,-500.0,0.00019178,2]
[323319694,1713889838705,-500.0,0.00019178,2]
[323319696,1713889838714,-500.0,0.00019178,2]
[323319698,1713889838724,-500.0,0.00019178,2]
[323319700,1713889838733,-500.0,0.00019178,2]
[323319701,1713889838743,-500.0,0.00019178,2]
[323319702,1713889838753,-500.0,0.00019178,2]
[323319703,1713889838763,-1821.99,0.00019178,2]
[323319704,1713889838772,-328.24798801,0.00019178,2]
[323319705,1713889838784,-500.0,0.00019178,2]
[323319706,1713889838793,-532.12,0.00019178,2]
[323319707,1713889838803,-500.0,0.00019178,2]
[323319708,1713889838812,-606.13,0.00019178,2]
[323319709,1713889838821,-500.0,0.00019178,2]
[323319710,1713889838831,-500.0,0.00019178,2]
[323319711,1713889838840,-1271.17,0.00019178,2]
[323319712,1713889838849,-500.0,0.00019178,2]
[323319713,1713889838858,-500.0,0.00019178,2]
[323319714,1713889838868,-589.88,0.00019178,2]
[323319715,1713889838877,-500.0,0.00019178,2]
[323319716,1713889838886,-500.0,0.00019178,2]
[323319717,1713889838895,-500.0,0.00019178,2]
[323319718,1713889838905,-500.0,0.00019178,2]
[323319719,1713889838914,-500.0,0.00019178,2]
[323319720,1713889838923,-500.0,0.00019178,2]
[323319721,1713889838932,-500.0,0.00019178,2]
[323319722,1713889838942,-500.0,0.00019178,2]
[323319723,1713889838951,-500.0,0.00019178,2]
[323319724,1713889838961,-500.0,0.00019178,2]
[323319725,1713889838970,-500.0,0.00019178,2]
[323319726,1713889838979,-500.0,0.00019178,2]
[323319727,1713889838989,-500.0,0.00019178,2]
[323319728,1713889838998,-581.8,0.00019178,2]
[323319729,1713889839007,-1324.11,0.00019178,2]